[Event "Titled Tuesday Blitz August 1 Early 2023"]
[White "Der_Balak_3Halak"]
[Black "Wong, Yinn Long"]
[BlackFideId "5707684"]
[WhiteElo "2401"]
[BlackElo "2800"]
[Result "0-1"]
[Round "2"]
[TimeControl "180+1"]
[Date "2023.08.01"]
[WhiteClock "0:00:04"]
[BlackClock "0:00:24"]
[Board "143"]

1. b3 {[%clk 0:03:00]}  d5 {[%clk 0:02:58]} 2. Bb2 {[%clk 0:03:01]}  Bg4 {[%clk 0:02:57]} 3. h3 {[%clk 0:02:58]}  Bh5 {[%clk 0:02:57]} 4. f4 {[%clk 0:02:58]}  e5 {[%clk 0:02:51]} 5. Nf3 {[%clk 0:02:43]}  e4 {[%clk 0:02:45]} 6. Ng5 {[%clk 0:02:39]}  h6 {[%clk 0:02:42]} 7. g4 {[%clk 0:02:29]}  hxg5 {[%clk 0:02:42]} 8. gxh5 {[%clk 0:02:29]}  gxf4 {[%clk 0:02:42]} 9. h4 {[%clk 0:02:27]}  Be7 {[%clk 0:02:39]} 10. Qc1 {[%clk 0:02:17]}  Bxh4+ {[%clk 0:02:35]} 11. Kd1 {[%clk 0:02:17]}  Bf6 {[%clk 0:02:27]} 12. Nc3 {[%clk 0:02:13]}  Nc6 {[%clk 0:02:21]} 13. Bg2 {[%clk 0:02:07]}  Qd6 {[%clk 0:02:13]} 14. d3 {[%clk 0:02:06]}  O-O-O {[%clk 0:02:03]} 15. Rf1 {[%clk 0:01:46]}  Bg5 {[%clk 0:01:50]} 16. Qd2 {[%clk 0:01:18]}  f5 {[%clk 0:01:41]} 17. Bh3 {[%clk 0:01:13]}  Nge7 {[%clk 0:01:40]} 18. Nb5 {[%clk 0:01:00]}  Qc5 {[%clk 0:01:34]} 19. a4 {[%clk 0:00:50]}  Rxh5 {[%clk 0:01:32]} 20. Ba3 {[%clk 0:00:47]}  Qb6 {[%clk 0:01:32]} 21. Rh1 {[%clk 0:00:42]}  f3 {[%clk 0:01:12]} 22. Qe1 {[%clk 0:00:38]}  f2 {[%clk 0:01:12]} 23. Qf1 {[%clk 0:00:37]}  a6 {[%clk 0:01:04]} 24. Nc3 {[%clk 0:00:31]}  Bf6 {[%clk 0:01:01]} 25. Bb2 {[%clk 0:00:26]}  Qc5 {[%clk 0:00:58]} 26. Rb1 {[%clk 0:00:09]}  Bxc3 {[%clk 0:00:57]} 27. Bxc3 {[%clk 0:00:10]}  Qxc3 {[%clk 0:00:58]} 28. Qxf2 {[%clk 0:00:10]}  Rdh8 {[%clk 0:00:52]} 29. Qf1 {[%clk 0:00:04]}  e3 {[%clk 0:00:48]} 30. Kc1 {[%clk 0:00:02]}  Nd4 {[%clk 0:00:35]} 31. Rb2 {[%clk 0:00:02]}  Qd2+ {[%clk 0:00:33]} 32. Kb1 {[%clk 0:00:03]}  Nxe2 {[%clk 0:00:32]} 33. c4 {[%clk 0:00:02]}  Qxd3+ {[%clk 0:00:27]} 34. Ka2 {[%clk 0:00:02]}  Nc3+ {[%clk 0:00:26]} 35. Ka3 {[%clk 0:00:02]}  Qxf1 {[%clk 0:00:26]} 36. Rxf1 {[%clk 0:00:03]}  Rxh3 {[%clk 0:00:27]} 37. Rg2 {[%clk 0:00:03]}  e2 {[%clk 0:00:26]} 38. Re1 {[%clk 0:00:03]}  Rh1 {[%clk 0:00:26]} 39. Rxg7 {[%clk 0:00:03]}  Rxe1 {[%clk 0:00:26]} 40. Rxe7 {[%clk 0:00:03]}  Ra1+ {[%clk 0:00:26]} 41. Kb4 {[%clk 0:00:04]}  e1=Q {[%clk 0:00:26]} 42. Kc5 {[%clk 0:00:03]}  Qxe7+ {[%clk 0:00:25]} 43. Kd4 {[%clk 0:00:04]}  Ne2+ {[%clk 0:00:24]} 44. Kd3 {[%clk 0:00:04]}  Rh3+ {[%clk 0:00:24]} 45. Kd2 {[%clk 0:00:04]}  Qe3+ {[%clk 0:00:24]} 46. Kc2 {[%clk 0:00:04]}  Nd4+ {[%clk 0:00:24]} 47. Kb2 {[%clk 0:00:04]}  Qc3# {[%clk 0:00:24]} 0-1


[Site "https://www.chess.com"]

[Event "Titled Tuesday Blitz August 1 Early 2023"]
[White "JonSnowNW1"]
[Black "Basso, Pier Luigi"]
[BlackFideId "866970"]
[WhiteElo "2399"]
[BlackElo "2777"]
[Result "0-1"]
[Round "2"]
[TimeControl "180+1"]
[Date "2023.08.01"]
[WhiteClock "0:00:00"]
[BlackClock "0:02:35"]
[Board "144"]

1. c4 {[%clk 0:03:00]}  c6 {[%clk 0:03:00]} 2. e4 {[%clk 0:03:00]}  d5 {[%clk 0:03:01]} 3. cxd5 {[%clk 0:02:59]}  cxd5 {[%clk 0:03:02]} 4. exd5 {[%clk 0:03:00]}  Nf6 {[%clk 0:03:03]} 5. Bb5+ {[%clk 0:03:00]}  Nbd7 {[%clk 0:03:02]} 6. Nc3 {[%clk 0:02:58]}  g6 {[%clk 0:03:02]} 7. Nf3 {[%clk 0:02:51]}  Bg7 {[%clk 0:03:03]} 8. O-O {[%clk 0:02:46]}  O-O {[%clk 0:03:03]} 9. d4 {[%clk 0:02:33]}  Nb6 {[%clk 0:03:03]} 10. Bd3 {[%clk 0:02:27]}  Nfxd5 {[%clk 0:02:59]} 11. h3 {[%clk 0:02:25]}  Nb4 {[%clk 0:02:56]} 12. Bb1 {[%clk 0:02:22]}  Nc6 {[%clk 0:02:54]} 13. Be3 {[%clk 0:02:19]}  Be6 {[%clk 0:02:53]} 14. Re1 {[%clk 0:01:33]}  Rc8 {[%clk 0:02:49]} 15. Bd3 {[%clk 0:01:26]}  Nb4 {[%clk 0:02:46]} 16. Be4 {[%clk 0:01:17]}  N4d5 {[%clk 0:02:42]} 17. Bd2 {[%clk 0:01:08]}  Nc4 {[%clk 0:02:40]} 18. Ng5 {[%clk 0:00:00]}  Nxb2 {[%clk 0:02:35]} 0-1


[Site "https://www.chess.com"]

[Event "Titled Tuesday Blitz August 1 Early 2023"]
[White "Bazilius, Augustinas"]
[Black "Dziththauly Ramadhan"]
[WhiteFideId "12832251"]
[BlackFideId "7105525"]
[WhiteElo "2395"]
[BlackElo "2771"]
[Result "0-1"]
[Round "2"]
[TimeControl "180+1"]
[Date "2023.08.01"]
[WhiteClock "0:00:00"]
[BlackClock "0:00:18"]
[Board "145"]

1. d4 {[%clk 0:03:00]}  Nf6 {[%clk 0:02:59]} 2. c4 {[%clk 0:02:52]}  e6 {[%clk 0:02:58]} 3. Nf3 {[%clk 0:02:51]}  b6 {[%clk 0:02:57]} 4. a3 {[%clk 0:02:50]}  Bb7 {[%clk 0:02:57]} 5. Nc3 {[%clk 0:02:45]}  d5 {[%clk 0:02:56]} 6. cxd5 {[%clk 0:02:46]}  Nxd5 {[%clk 0:02:55]} 7. Qc2 {[%clk 0:02:46]}  c5 {[%clk 0:02:53]} 8. e4 {[%clk 0:02:45]}  Nxc3 {[%clk 0:02:52]} 9. bxc3 {[%clk 0:02:46]}  Be7 {[%clk 0:02:52]} 10. Bb5+ {[%clk 0:02:42]}  Nd7 {[%clk 0:02:52]} 11. O-O {[%clk 0:02:40]}  O-O {[%clk 0:02:51]} 12. Be3 {[%clk 0:02:39]}  Rc8 {[%clk 0:02:47]} 13. Qe2 {[%clk 0:02:37]}  Bxe4 {[%clk 0:02:43]} 14. Ba6 {[%clk 0:01:37]}  Ra8 {[%clk 0:02:38]} 15. Bf4 {[%clk 0:01:34]}  Bc6 {[%clk 0:02:24]} 16. Rfe1 {[%clk 0:01:27]}  Nf6 {[%clk 0:01:33]} 17. Ne5 {[%clk 0:01:26]}  Qd5 {[%clk 0:01:33]} 18. Nxc6 {[%clk 0:01:14]}  Qxc6 {[%clk 0:01:34]} 19. a4 {[%clk 0:01:15]}  Rad8 {[%clk 0:01:26]} 20. Bb5 {[%clk 0:01:11]}  Qb7 {[%clk 0:01:23]} 21. Ba6 {[%clk 0:01:11]}  Qa8 {[%clk 0:01:23]} 22. Bc7 {[%clk 0:01:09]}  Rd7 {[%clk 0:01:22]} 23. Be5 {[%clk 0:01:06]}  Nd5 {[%clk 0:01:20]} 24. Bb5 {[%clk 0:01:01]}  Rdd8 {[%clk 0:01:11]} 25. dxc5 {[%clk 0:00:54]}  bxc5 {[%clk 0:01:07]} 26. a5 {[%clk 0:00:50]}  Bf6 {[%clk 0:01:07]} 27. Bxf6 {[%clk 0:00:48]}  Nxf6 {[%clk 0:01:06]} 28. a6 {[%clk 0:00:48]}  Qd5 {[%clk 0:01:06]} 29. Bc4 {[%clk 0:00:44]}  Qc6 {[%clk 0:01:02]} 30. Rab1 {[%clk 0:00:39]}  Rb8 {[%clk 0:01:00]} 31. Qe5 {[%clk 0:00:38]}  Rxb1 {[%clk 0:01:00]} 32. Rxb1 {[%clk 0:00:39]}  h6 {[%clk 0:00:59]} 33. Rb7 {[%clk 0:00:32]}  Rd8 {[%clk 0:00:59]} 34. h3 {[%clk 0:00:29]}  Qa4 {[%clk 0:00:54]} 35. Qc7 {[%clk 0:00:25]}  Rd7 {[%clk 0:00:39]} 36. Qxc5 {[%clk 0:00:24]}  Rd1+ {[%clk 0:00:29]} 37. Kh2 {[%clk 0:00:22]}  Qa1 {[%clk 0:00:30]} 38. Rb8+ {[%clk 0:00:15]}  Kh7 {[%clk 0:00:30]} 39. Qe5 {[%clk 0:00:13]}  Rh1+ {[%clk 0:00:19]} 40. Kg3 {[%clk 0:00:12]}  Qxc3+ {[%clk 0:00:19]} 41. Qxc3 {[%clk 0:00:11]}  Ne4+ {[%clk 0:00:20]} 42. Kf3 {[%clk 0:00:02]}  Nxc3 {[%clk 0:00:20]} 43. Bd3+ {[%clk 0:00:03]}  g6 {[%clk 0:00:20]} 44. Rb7 {[%clk 0:00:03]}  Rd1 {[%clk 0:00:19]} 45. Rxf7+ {[%clk 0:00:03]}  Kg8 {[%clk 0:00:20]} 46. Bxg6 {[%clk 0:00:03]}  Ra1 {[%clk 0:00:18]} 47. Rxa7 {[%clk 0:00:03]}  Nb5 {[%clk 0:00:19]} 48. Ra8+ {[%clk 0:00:03]}  Kg7 {[%clk 0:00:19]} 49. Bd3 {[%clk 0:00:04]}  Nd4+ {[%clk 0:00:18]} 50. Ke3 {[%clk 0:00:04]}  Nc6 {[%clk 0:00:17]} 51. Rc8 {[%clk 0:00:04]}  Nb4 {[%clk 0:00:18]} 52. Rc7+ {[%clk 0:00:04]}  Kf6 {[%clk 0:00:18]} 53. a7 {[%clk 0:00:05]}  Ra3 {[%clk 0:00:18]} 54. Rd7 {[%clk 0:00:03]}  Nc6 {[%clk 0:00:17]} 55. Kf3 {[%clk 0:00:01]}  Ne5+ {[%clk 0:00:17]} 56. Ke4 {[%clk 0:00:00]}  Nxd7 {[%clk 0:00:18]} 0-1


[Site "https://www.chess.com"]

[Event "Titled Tuesday Blitz August 1 Early 2023"]
[White "Castella Garcia, Fausto"]
[Black "Kaczur, Florian"]
[WhiteFideId "3501922"]
[BlackFideId "705098"]
[WhiteElo "2395"]
[BlackElo "2770"]
[Result "0-1"]
[Round "2"]
[TimeControl "180+1"]
[Date "2023.08.01"]
[WhiteClock "0:00:59"]
[BlackClock "0:02:09"]
[Board "146"]

1. e4 {[%clk 0:02:28]}  e5 {[%clk 0:02:58]} 2. Nf3 {[%clk 0:02:29]}  Nc6 {[%clk 0:02:57]} 3. Bb5 {[%clk 0:02:29]}  Nd4 {[%clk 0:02:57]} 4. Nxd4 {[%clk 0:02:27]}  exd4 {[%clk 0:02:57]} 5. O-O {[%clk 0:02:28]}  Nf6 {[%clk 0:02:57]} 6. d3 {[%clk 0:02:27]}  c6 {[%clk 0:02:52]} 7. Ba4 {[%clk 0:02:26]}  Bc5 {[%clk 0:02:49]} 8. f4 {[%clk 0:02:25]}  d5 {[%clk 0:02:47]} 9. e5 {[%clk 0:02:23]}  Nd7 {[%clk 0:02:44]} 10. Qh5 {[%clk 0:02:15]}  O-O {[%clk 0:02:42]} 11. Nd2 {[%clk 0:02:10]}  a5 {[%clk 0:02:40]} 12. Nf3 {[%clk 0:01:57]}  b5 {[%clk 0:02:30]} 13. f5 {[%clk 0:01:57]}  bxa4 {[%clk 0:02:23]} 14. f6 {[%clk 0:01:51]}  Nxf6 {[%clk 0:02:16]} 15. exf6 {[%clk 0:01:46]}  Qxf6 {[%clk 0:02:17]} 16. Bg5 {[%clk 0:01:23]}  Qg6 {[%clk 0:02:12]} 17. Qh4 {[%clk 0:01:23]}  f6 {[%clk 0:02:12]} 18. Bf4 {[%clk 0:01:16]}  Qg4 {[%clk 0:02:11]} 19. Qxg4 {[%clk 0:01:05]}  Bxg4 {[%clk 0:02:12]} 20. Rae1 {[%clk 0:00:59]}  Rfe8 {[%clk 0:02:09]} 0-1


[Site "https://www.chess.com"]

[Event "Titled Tuesday Blitz August 1 Early 2023"]
[White "Wagh Suyog"]
[Black "Mika, Tomasz"]
[WhiteFideId "25071688"]
[BlackFideId "1132970"]
[WhiteElo "2768"]
[BlackElo "2394"]
[Result "1-0"]
[Round "2"]
[TimeControl "180+1"]
[Date "2023.08.01"]
[WhiteClock "0:00:11"]
[BlackClock "0:00:02"]
[Board "147"]

1. d4 {[%clk 0:02:52]}  Nf6 {[%clk 0:02:59]} 2. c4 {[%clk 0:02:51]}  e6 {[%clk 0:03:00]} 3. Nf3 {[%clk 0:02:50]}  d5 {[%clk 0:02:56]} 4. g3 {[%clk 0:02:37]}  Bb4+ {[%clk 0:02:56]} 5. Bd2 {[%clk 0:02:36]}  Be7 {[%clk 0:02:56]} 6. Bg2 {[%clk 0:02:36]}  O-O {[%clk 0:02:55]} 7. O-O {[%clk 0:02:37]}  c6 {[%clk 0:02:55]} 8. Qc2 {[%clk 0:02:37]}  Nbd7 {[%clk 0:02:54]} 9. Bf4 {[%clk 0:02:34]}  b6 {[%clk 0:02:54]} 10. cxd5 {[%clk 0:02:34]}  cxd5 {[%clk 0:02:38]} 11. Ne5 {[%clk 0:02:33]}  Bb7 {[%clk 0:02:35]} 12. Nc6 {[%clk 0:02:30]}  Bxc6 {[%clk 0:02:33]} 13. Qxc6 {[%clk 0:02:31]}  Qc8 {[%clk 0:02:31]} 14. Qa4 {[%clk 0:02:27]}  Qb7 {[%clk 0:02:27]} 15. Nc3 {[%clk 0:02:26]}  a6 {[%clk 0:02:28]} 16. Rfe1 {[%clk 0:02:24]}  b5 {[%clk 0:02:27]} 17. Qb3 {[%clk 0:02:23]}  Nb6 {[%clk 0:02:03]} 18. e4 {[%clk 0:02:19]}  b4 {[%clk 0:02:03]} 19. exd5 {[%clk 0:02:15]}  Nbxd5 {[%clk 0:01:36]} 20. Be5 {[%clk 0:02:11]}  Rfd8 {[%clk 0:01:18]} 21. Rac1 {[%clk 0:02:10]}  Rac8 {[%clk 0:00:58]} 22. Na4 {[%clk 0:02:09]}  Rxc1 {[%clk 0:00:47]} 23. Rxc1 {[%clk 0:02:10]}  Rc8 {[%clk 0:00:47]} 24. Nc5 {[%clk 0:02:07]}  Bxc5 {[%clk 0:00:40]} 25. dxc5 {[%clk 0:02:06]}  Nd7 {[%clk 0:00:40]} 26. Bd6 {[%clk 0:01:55]}  Qc6 {[%clk 0:00:38]} 27. Bxd5 {[%clk 0:01:48]}  Qxd5 {[%clk 0:00:30]} 28. Qxd5 {[%clk 0:01:35]}  exd5 {[%clk 0:00:30]} 29. c6 {[%clk 0:01:35]}  Nb6 {[%clk 0:00:16]} 30. b3 {[%clk 0:01:27]}  a5 {[%clk 0:00:16]} 31. f4 {[%clk 0:01:23]}  f6 {[%clk 0:00:16]} 32. f5 {[%clk 0:01:19]}  Kf7 {[%clk 0:00:16]} 33. Kf2 {[%clk 0:01:18]}  g6 {[%clk 0:00:17]} 34. g4 {[%clk 0:01:18]}  d4 {[%clk 0:00:13]} 35. Rc5 {[%clk 0:01:12]}  gxf5 {[%clk 0:00:12]} 36. gxf5 {[%clk 0:01:12]}  h5 {[%clk 0:00:11]} 37. Ke2 {[%clk 0:01:03]}  a4 {[%clk 0:00:11]} 38. Kd3 {[%clk 0:01:00]}  axb3 {[%clk 0:00:11]} 39. axb3 {[%clk 0:01:01]}  Ra8 {[%clk 0:00:11]} 40. Rb5 {[%clk 0:00:57]}  Nc8 {[%clk 0:00:11]} 41. Rb7+ {[%clk 0:00:56]}  Ke8 {[%clk 0:00:10]} 42. Bxb4 {[%clk 0:00:55]}  Ra6 {[%clk 0:00:10]} 43. Rc7 {[%clk 0:00:52]}  Nb6 {[%clk 0:00:08]} 44. Re7+ {[%clk 0:00:50]}  Kd8 {[%clk 0:00:08]} 45. c7+ {[%clk 0:00:50]}  Kc8 {[%clk 0:00:07]} 46. Bd6 {[%clk 0:00:49]}  Ra8 {[%clk 0:00:04]} 47. Kxd4 {[%clk 0:00:38]}  Kb7 {[%clk 0:00:05]} 48. Bc5 {[%clk 0:00:30]}  Nc8 {[%clk 0:00:04]} 49. Rf7 {[%clk 0:00:30]}  Ra2 {[%clk 0:00:05]} 50. Rxf6 {[%clk 0:00:27]}  Rd2+ {[%clk 0:00:05]} 51. Kc3 {[%clk 0:00:26]}  Rxh2 {[%clk 0:00:05]} 52. Rf7 {[%clk 0:00:23]}  Rh3+ {[%clk 0:00:05]} 53. Kc4 {[%clk 0:00:22]}  Rh4+ {[%clk 0:00:05]} 54. Kd5 {[%clk 0:00:21]}  Rh3 {[%clk 0:00:04]} 55. f6 {[%clk 0:00:21]}  Rxb3 {[%clk 0:00:04]} 56. Ke4 {[%clk 0:00:16]}  h4 {[%clk 0:00:03]} 57. Rh7 {[%clk 0:00:15]}  Kc6 {[%clk 0:00:04]} 58. f7 {[%clk 0:00:14]}  Kxc5 {[%clk 0:00:03]} 59. f8=Q+ {[%clk 0:00:14]}  Nd6+ {[%clk 0:00:02]} 60. Qxd6+ {[%clk 0:00:11]} 1-0


[Site "https://www.chess.com"]

[Event "Titled Tuesday Blitz August 1 Early 2023"]
[White "Hoffmann, Asa"]
[Black "Lamaze, Simon"]
[WhiteFideId "2001470"]
[BlackFideId "36069264"]
[WhiteElo "2393"]
[BlackElo "2765"]
[Result "0-1"]
[Round "2"]
[TimeControl "180+1"]
[Date "2023.08.01"]
[WhiteClock "0:00:06"]
[BlackClock "0:01:24"]
[Board "148"]

1. d4 {[%clk 0:02:55]}  f6 {[%clk 0:03:00]} 2. e4 {[%clk 0:02:53]}  g6 {[%clk 0:03:01]} 3. h4 {[%clk 0:02:52]}  Nh6 {[%clk 0:02:50]} 4. h5 {[%clk 0:02:51]}  Nf7 {[%clk 0:02:46]} 5. Nc3 {[%clk 0:02:46]}  c6 {[%clk 0:02:46]} 6. Bc4 {[%clk 0:02:43]}  e6 {[%clk 0:02:42]} 7. Qe2 {[%clk 0:02:30]}  gxh5 {[%clk 0:02:34]} 8. Rxh5 {[%clk 0:02:26]}  Qe7 {[%clk 0:02:31]} 9. Nf3 {[%clk 0:02:21]}  d5 {[%clk 0:02:31]} 10. Bb3 {[%clk 0:02:04]}  Nd7 {[%clk 0:02:30]} 11. Bf4 {[%clk 0:02:01]}  Nb6 {[%clk 0:02:26]} 12. O-O-O {[%clk 0:02:00]}  Bd7 {[%clk 0:02:25]} 13. exd5 {[%clk 0:01:56]}  exd5 {[%clk 0:02:25]} 14. Qd3 {[%clk 0:01:53]}  O-O-O {[%clk 0:02:14]} 15. Re1 {[%clk 0:01:50]}  Qb4 {[%clk 0:02:14]} 16. a3 {[%clk 0:01:46]}  Qa5 {[%clk 0:02:13]} 17. Rxh7 {[%clk 0:01:39]}  Rxh7 {[%clk 0:02:14]} 18. Qxh7 {[%clk 0:01:38]}  Nd6 {[%clk 0:02:13]} 19. Qh4 {[%clk 0:01:24]}  Ndc4 {[%clk 0:02:11]} 20. Qxf6 {[%clk 0:01:15]}  Bxa3 {[%clk 0:02:06]} 21. Bxc4 {[%clk 0:00:54]}  Bxb2+ {[%clk 0:01:59]} 22. Kxb2 {[%clk 0:00:45]}  Nxc4+ {[%clk 0:01:58]} 23. Kc1 {[%clk 0:00:31]}  Qa1+ {[%clk 0:01:56]} 24. Nb1 {[%clk 0:00:30]}  Qb2+ {[%clk 0:01:55]} 25. Kd1 {[%clk 0:00:30]}  Qxb1+ {[%clk 0:01:55]} 26. Ke2 {[%clk 0:00:30]}  Qxc2+ {[%clk 0:01:55]} 27. Kf1 {[%clk 0:00:30]}  Qf5 {[%clk 0:01:36]} 28. Qh6 {[%clk 0:00:21]}  Rg8 {[%clk 0:01:25]} 29. Rc1 {[%clk 0:00:19]}  Qd3+ {[%clk 0:01:24]} 30. Kg1 {[%clk 0:00:19]}  Qxf3 {[%clk 0:01:25]} 31. Bg3 {[%clk 0:00:16]}  Qf7 {[%clk 0:01:23]} 32. Rxc4 {[%clk 0:00:15]}  dxc4 {[%clk 0:01:24]} 33. Qd6 {[%clk 0:00:06]}  Rxg3 {[%clk 0:01:24]} 0-1


[Site "https://www.chess.com"]

[Event "Titled Tuesday Blitz August 1 Early 2023"]
[White "Mikhalsky, Vladimir"]
[Black "Javakhadze, Zurab"]
[WhiteFideId "14144352"]
[BlackFideId "13603647"]
[WhiteElo "2390"]
[BlackElo "2725"]
[Result "0-1"]
[Round "2"]
[TimeControl "180+1"]
[Date "2023.08.01"]
[WhiteClock "0:00:00"]
[BlackClock "0:00:12"]
[Board "150"]

1. d4 {[%clk 0:02:22]}  Nf6 {[%clk 0:02:59]} 2. c4 {[%clk 0:02:21]}  e6 {[%clk 0:02:59]} 3. g3 {[%clk 0:02:19]}  d5 {[%clk 0:02:59]} 4. Bg2 {[%clk 0:02:19]}  Be7 {[%clk 0:02:53]} 5. Nf3 {[%clk 0:02:19]}  O-O {[%clk 0:02:52]} 6. O-O {[%clk 0:02:19]}  a5 {[%clk 0:02:53]} 7. Nc3 {[%clk 0:02:18]}  c6 {[%clk 0:02:53]} 8. c5 {[%clk 0:02:17]}  b6 {[%clk 0:02:51]} 9. cxb6 {[%clk 0:02:17]}  Nbd7 {[%clk 0:02:48]} 10. Na4 {[%clk 0:02:16]}  Nxb6 {[%clk 0:02:41]} 11. Bf4 {[%clk 0:02:12]}  Ba6 {[%clk 0:02:37]} 12. Ne5 {[%clk 0:02:07]}  Rc8 {[%clk 0:02:27]} 13. Nc5 {[%clk 0:01:57]}  Bxc5 {[%clk 0:02:26]} 14. dxc5 {[%clk 0:01:57]}  Nbd7 {[%clk 0:02:22]} 15. Rc1 {[%clk 0:01:52]}  Re8 {[%clk 0:02:12]} 16. Re1 {[%clk 0:01:51]}  Nxe5 {[%clk 0:02:09]} 17. Bxe5 {[%clk 0:01:50]}  Nd7 {[%clk 0:02:10]} 18. Bd6 {[%clk 0:01:50]}  Qf6 {[%clk 0:02:02]} 19. Qd2 {[%clk 0:01:45]}  Ne5 {[%clk 0:01:56]} 20. b3 {[%clk 0:01:40]}  Ng4 {[%clk 0:01:54]} 21. Qf4 {[%clk 0:01:34]}  Qxf4 {[%clk 0:01:52]} 22. gxf4 {[%clk 0:01:34]}  f6 {[%clk 0:01:35]} 23. Bh3 {[%clk 0:01:22]}  h5 {[%clk 0:01:26]} 24. f3 {[%clk 0:01:04]}  Ne3 {[%clk 0:01:20]} 25. Kf2 {[%clk 0:00:58]}  d4 {[%clk 0:01:21]} 26. Rg1 {[%clk 0:00:57]}  Kf7 {[%clk 0:01:19]} 27. Rg3 {[%clk 0:00:52]}  h4 {[%clk 0:01:17]} 28. Rgg1 {[%clk 0:00:49]}  Ra8 {[%clk 0:01:13]} 29. Bg4 {[%clk 0:00:41]}  g6 {[%clk 0:01:11]} 30. Bh3 {[%clk 0:00:36]}  a4 {[%clk 0:01:10]} 31. Rgd1 {[%clk 0:00:28]}  Nxd1+ {[%clk 0:01:09]} 32. Rxd1 {[%clk 0:00:28]}  axb3 {[%clk 0:01:04]} 33. axb3 {[%clk 0:00:28]}  Bb5 {[%clk 0:01:00]} 34. Rxd4 {[%clk 0:00:27]}  Ra2 {[%clk 0:01:00]} 35. Re4 {[%clk 0:00:26]}  Rb2 {[%clk 0:00:54]} 36. Re3 {[%clk 0:00:26]}  f5 {[%clk 0:00:54]} 37. Be5 {[%clk 0:00:24]}  Rc2 {[%clk 0:00:54]} 38. Bd4 {[%clk 0:00:23]}  Rd8 {[%clk 0:00:53]} 39. Be5 {[%clk 0:00:19]}  Rxc5 {[%clk 0:00:53]} 40. b4 {[%clk 0:00:15]}  Rc2 {[%clk 0:00:52]} 41. Bf1 {[%clk 0:00:14]}  Rdd2 {[%clk 0:00:52]} 42. Ke1 {[%clk 0:00:14]}  Rd7 {[%clk 0:00:48]} 43. Ra3 {[%clk 0:00:14]}  Rc1+ {[%clk 0:00:48]} 44. Kf2 {[%clk 0:00:14]}  Rdd1 {[%clk 0:00:49]} 45. Bg2 {[%clk 0:00:13]}  Rd7 {[%clk 0:00:39]} 46. Ra8 {[%clk 0:00:13]}  Rb1 {[%clk 0:00:39]} 47. Rh8 {[%clk 0:00:12]}  Re7 {[%clk 0:00:35]} 48. Rxh4 {[%clk 0:00:10]}  Ke8 {[%clk 0:00:33]} 49. Bd6 {[%clk 0:00:09]}  Rg7 {[%clk 0:00:30]} 50. Bc5 {[%clk 0:00:09]}  g5 {[%clk 0:00:29]} 51. Rh6 {[%clk 0:00:07]}  Kf7 {[%clk 0:00:26]} 52. fxg5 {[%clk 0:00:08]}  Rxg5 {[%clk 0:00:27]} 53. f4 {[%clk 0:00:08]}  Rg4 {[%clk 0:00:25]} 54. Bf3 {[%clk 0:00:08]}  Rxf4 {[%clk 0:00:25]} 55. Ke3 {[%clk 0:00:08]}  Rc4 {[%clk 0:00:22]} 56. Bh5+ {[%clk 0:00:07]}  Kg7 {[%clk 0:00:20]} 57. Rxe6 {[%clk 0:00:07]}  Rb3+ {[%clk 0:00:19]} 58. Kf2 {[%clk 0:00:07]}  Rf4+ {[%clk 0:00:18]} 59. Bf3 {[%clk 0:00:07]}  Rh4 {[%clk 0:00:15]} 60. Kg3 {[%clk 0:00:00]}  Re4 {[%clk 0:00:12]} 0-1


[Site "https://www.chess.com"]

[Event "Titled Tuesday Blitz August 1 Early 2023"]
[White "jimmy-schlumpf"]
[Black "Panesar Vedant"]
[BlackFideId "35033018"]
[WhiteElo "2386"]
[BlackElo "2708"]
[Result "0-1"]
[Round "2"]
[TimeControl "180+1"]
[Date "2023.08.01"]
[WhiteClock "0:00:00"]
[BlackClock "0:00:04"]
[Board "154"]

1. d4 {[%clk 0:03:00]}  Nf6 {[%clk 0:02:55]} 2. Nf3 {[%clk 0:03:01]}  d5 {[%clk 0:02:55]} 3. c4 {[%clk 0:03:01]}  e6 {[%clk 0:02:55]} 4. g3 {[%clk 0:03:00]}  dxc4 {[%clk 0:02:55]} 5. Bg2 {[%clk 0:03:00]}  c5 {[%clk 0:02:56]} 6. O-O {[%clk 0:02:57]}  Nc6 {[%clk 0:02:56]} 7. dxc5 {[%clk 0:02:57]}  Qxd1 {[%clk 0:02:56]} 8. Rxd1 {[%clk 0:02:56]}  Bxc5 {[%clk 0:02:57]} 9. Nbd2 {[%clk 0:02:51]}  c3 {[%clk 0:02:57]} 10. bxc3 {[%clk 0:02:50]}  O-O {[%clk 0:02:58]} 11. Nb3 {[%clk 0:02:50]}  Be7 {[%clk 0:02:59]} 12. c4 {[%clk 0:02:47]}  Bd7 {[%clk 0:02:58]} 13. Be3 {[%clk 0:02:35]}  Rfc8 {[%clk 0:02:52]} 14. Nc5 {[%clk 0:02:21]}  Bxc5 {[%clk 0:02:48]} 15. Bxc5 {[%clk 0:02:19]}  Na5 {[%clk 0:02:44]} 16. Be7 {[%clk 0:02:10]}  Bc6 {[%clk 0:02:42]} 17. Rac1 {[%clk 0:01:59]}  Ba4 {[%clk 0:02:25]} 18. Rd4 {[%clk 0:01:39]}  Ne8 {[%clk 0:02:17]} 19. c5 {[%clk 0:01:10]}  Bc6 {[%clk 0:02:04]} 20. Bd6 {[%clk 0:01:03]}  Nf6 {[%clk 0:01:38]} 21. Ne5 {[%clk 0:00:39]}  Bxg2 {[%clk 0:00:37]} 22. Kxg2 {[%clk 0:00:39]}  Ne8 {[%clk 0:00:38]} 23. Rdd1 {[%clk 0:00:34]}  f6 {[%clk 0:00:27]} 24. Nd3 {[%clk 0:00:30]}  Rd8 {[%clk 0:00:20]} 25. Nf4 {[%clk 0:00:26]}  Kf7 {[%clk 0:00:21]} 26. e4 {[%clk 0:00:23]}  Rd7 {[%clk 0:00:20]} 27. e5 {[%clk 0:00:20]}  Rad8 {[%clk 0:00:21]} 28. Nd3 {[%clk 0:00:14]}  Nc6 {[%clk 0:00:20]} 29. f4 {[%clk 0:00:12]}  h5 {[%clk 0:00:18]} 30. h3 {[%clk 0:00:11]}  Nc7 {[%clk 0:00:17]} 31. a3 {[%clk 0:00:03]}  Nd5 {[%clk 0:00:03]} 32. Kf2 {[%clk 0:00:01]}  a6 {[%clk 0:00:04]} 33. Rd2 {[%clk 0:00:00]}  Nc7 {[%clk 0:00:04]} 0-1


[Site "https://www.chess.com"]